bitfinex/quotes_BTCUSD_20251215
["timestamp","ask_amount","ask_price","bid_price","bid_amount"]
[1765799183116,0.23415523,89685.0,89677.0,0.24532362]
[1765799183340,0.01115001,89686.0,89679.0,0.01115088]
[1765799183549,0.23415286,89685.0,89682.0,0.03990101]
[1765799183724,0.2230077,89683.0,89682.0,0.0176]
[1765799183958,0.2230077,89683.0,89682.0,0.0186]
[1765799184199,0.2230077,89683.0,89682.0,0.0196]
[1765799184426,0.2230077,89683.0,89682.0,0.002]
[1765799184639,0.2230077,89683.0,89682.0,0.001]
[1765799184818,0.2230077,89683.0,89682.0,0.003]
[1765799185285,0.2230077,89683.0,89682.0,0.002]
[1765799185520,0.2230077,89683.0,89682.0,0.003]
[1765799185727,0.2230077,89683.0,89682.0,0.002]
[1765799186157,0.22302759,89675.0,89674.0,0.022303]
[1765799186362,0.23417381,89677.0,89671.0,0.08896055]
[1765799186363,0.22303506,89672.0,89671.0,0.1112643]
[1765799186565,0.22303506,89672.0,89671.0,0.08896055]
[1765799187192,0.22303506,89672.0,89670.0,0.46689764]
[1765799187193,0.22303754,89671.0,89670.0,0.46689764]
[1765799189664,0.22303754,89671.0,89670.0,0.46789764]
[1765799196404,0.22303754,89671.0,89670.0,0.46689764]
[1765799196615,0.22403754,89671.0,89670.0,0.46689764]
[1765799197768,0.22603754,89671.0,89670.0,0.46689764]
[1765799198597,0.22765041,89671.0,89670.0,0.46689764]
[1765799199551,0.51835041,89671.0,89670.0,0.46689764]
[1765799201562,0.53595041,89671.0,89670.0,0.46689764]
[1765799201762,0.22603754,89671.0,89670.0,0.46689764]
[1765799203177,0.003,89671.0,89670.0,0.46689764]
[1765799203390,0.22603754,89671.0,89670.0,0.46689764]
[1765799203592,0.003,89671.0,89670.0,0.68993767]
[1765799206646,0.00011464,89672.0,89671.0,0.22303754]
[1765799208447,0.00011464,89672.0,89671.0,0.22403754]
[1765799212710,0.00011464,89672.0,89671.0,0.33923754]
[1765799213060,0.00011464,89672.0,89671.0,0.33823754]
[1765799213393,0.00011464,89672.0,89671.0,0.22303754]
[1765799213692,0.00011464,89672.0,89671.0,0.22603754]
[1765799213892,0.00011464,89672.0,89671.0,0.22303754]
[1765799214275,0.00211464,89672.0,89671.0,0.23903754]
[1765799214469,0.00011464,89672.0,89671.0,0.27305593]
[1765799214678,0.00011464,89672.0,89671.0,0.32872591]
[1765799214886,0.00211464,89672.0,89671.0,0.29205593]
[1765799215457,0.00211464,89672.0,89671.0,0.28905593]
[1765799215676,0.00311464,89672.0,89671.0,0.30805593]
[1765799216114,0.00311464,89672.0,89671.0,0.38805377]
[1765799216445,0.00311464,89672.0,89671.0,0.36372591]
[1765799217114,0.001551,89672.0,89671.0,1.59875593]
[1765799217322,0.001551,89672.0,89671.0,1.65442591]
[1765799218160,0.001,89672.0,89671.0,1.63842591]
[1765799218363,0.23407382,89716.0,89712.0,0.2340801]
[1765799218579,0.00172797,89716.0,89715.0,0.22292816]
[1765799218790,0.00172797,89716.0,89714.0,0.01114653]
[1765799218992,0.00172797,89716.0,89715.0,0.02229281]
[1765799219200,0.00172797,89716.0,89715.0,0.24522097]
[1765799219468,0.00172797,89716.0,89715.0,0.22292816]
[1765799219651,0.0001151,89716.0,89715.0,0.22292816]
[1765799219851,0.0021151,89716.0,89715.0,0.22292816]
[1765799220061,0.0071151,89716.0,89715.0,0.22292816]
[1765799220486,0.0121151,89716.0,89715.0,0.22292816]
[1765799220908,0.0001151,89716.0,89715.0,0.22292816]
[1765799221121,0.0021151,89716.0,89715.0,0.22292816]
[1765799224300,0.22504169,89716.0,89713.0,0.1001072]
[1765799224498,0.0021151,89716.0,89714.0,0.22292937]
[1765799224733,0.22293064,89714.0,89713.0,0.08896055]
[1765799225089,0.23618736,89716.0,89713.0,0.08896055]
[1765799225290,0.23618736,89716.0,89713.0,0.31189293]
[1765799225500,0.22292829,89715.0,89713.0,0.08896055]
[1765799225695,0.23618736,89716.0,89713.0,0.08896055]
[1765799226126,0.22292846,89715.0,89713.0,0.08896055]
[1765799226506,0.23418736,89716.0,89713.0,0.31189326]
[1765799226881,0.0001151,89716.0,89713.0,0.1001072]
[1765799227297,0.22292816,89715.0,89713.0,0.08896055]
[1765799227527,0.23418751,89716.0,89713.0,0.08896055]
[1765799227726,0.22293041,89715.0,89713.0,0.08896055]
[1765799227959,0.22293064,89714.0,89713.0,0.08896055]
[1765799228119,0.22293041,89715.0,89713.0,0.08896055]
[1765799228338,0.0111469,89711.0,89700.0,0.01114827]
[1765799228539,0.2229458,89708.0,89705.0,0.22295098]
[1765799228944,0.00161287,89711.0,89701.0,0.0176]
[1765799229167,0.01114765,89705.0,89701.0,0.24056275]
[1765799229465,0.23409675,89707.0,89704.0,0.22295443]
[1765799229632,0.23409308,89708.0,89705.0,0.22295062]
[1765799229832,0.23409308,89708.0,89705.0,0.22295301]
[1765799230028,0.22294876,89707.0,89704.0,0.2341022]
[1765799230226,0.22295896,89703.0,89701.0,0.0176]
[1765799230488,0.01114864,89697.0,89692.0,0.10010981]
[1765799230660,0.22297926,89695.0,89693.0,0.02229828]
[1765799230985,0.22297803,89695.0,89692.0,0.31194539]
[1765799231190,0.22297803,89695.0,89692.0,0.08896055]
[1765799231343,0.2229824,89694.0,89692.0,0.08896055]
[1765799231714,0.2229824,89694.0,89689.0,0.01114963]
[1765799231715,0.01114963,89689.0,89688.0,0.0176]
[1765799231992,0.23414286,89689.0,89688.0,0.0176]
[1765799232551,0.23414286,89689.0,89682.0,0.23416064]
[1765799232552,0.01114988,89687.0,89679.0,0.01115088]
[1765799232757,0.01115001,89686.0,89683.0,0.01115038]
[1765799233451,0.22300322,89685.0,89683.0,0.23415663]
[1765799233683,0.22300306,89685.0,89684.0,0.08896055]
[1765799234138,0.23415035,89686.0,89684.0,0.08896055]
[1765799234940,0.22300273,89685.0,89684.0,0.08896055]
[1765799235697,0.23415035,89686.0,89684.0,0.08896055]
[1765799235874,0.22300273,89685.0,89684.0,0.08896055]
[1765799237164,0.0111515,89674.0,89670.0,0.46689764]
[1765799237391,0.0111515,89674.0,89671.0,0.0176]
[1765799237559,0.22303031,89674.0,89671.0,0.25178708]
[1765799237714,0.23418112,89675.0,89672.0,0.22303458]
[1765799237922,0.23418112,89675.0,89673.0,0.22303253]
[1765799238119,0.22300803,89683.0,89673.0,0.22303253]
[1765799238120,0.01115088,89679.0,89674.0,0.0111515]
[1765799238325,0.23417129,89678.0,89675.0,0.23417756]
[1765799238549,0.01115113,89677.0,89674.0,0.23418001]
[1765799238753,0.23417336,89679.0,89675.0,0.01115137]
[1765799238975,0.22302145,89678.0,89675.0,0.23417401]
[1765799239134,0.23417245,89678.0,89675.0,0.23417401]
[1765799239335,0.0111515,89674.0,89671.0,0.08896055]
[1765799239540,0.0111515,89674.0,89671.0,0.10011242]
[1765799239757,0.23418166,89674.0,89671.0,0.10011242]
[1765799240155,0.0111515,89674.0,89672.0,0.22303494]
[1765799240400,0.0111515,89674.0,89670.0,0.47804964]
[1765799240401,0.22303506,89672.0,89670.0,0.46689764]
[1765799240547,0.01115113,89677.0,89671.0,0.08896055]
[1765799240754,0.23417636,89676.0,89672.0,0.25648955]
[1765799240971,0.2230326,89673.0,89671.0,0.08896055]
[1765799241189,0.22303506,89672.0,89671.0,0.08896055]
[1765799241638,0.23618164,89674.0,89671.0,0.3119973]
[1765799241863,0.24018164,89674.0,89671.0,0.08896055]
[1765799242083,0.23618164,89674.0,89671.0,0.08896055]
[1765799242266,0.23418164,89674.0,89671.0,0.08896055]
[1765799242528,0.22603506,89672.0,89671.0,0.08896055]
[1765799242699,0.22303506,89672.0,89671.0,0.08896055]
[1765799242844,0.22303498,89673.0,89671.0,0.08896055]
[1765799243301,0.22303257,89673.0,89671.0,0.08896055]
[1765799243500,0.0111515,89674.0,89672.0,0.22303504]
[1765799243721,0.2341761,89678.0,89675.0,0.23417659]
[1765799243932,0.23417785,89676.0,89673.0,0.23418201]
[1765799244132,0.23417785,89676.0,89672.0,0.23418672]
[1765799244133,0.22302975,89675.0,89672.0,0.23418672]
[1765799244545,0.22302759,89675.0,89672.0,0.23418672]
[1765799244763,0.22303257,89673.0,89671.0,0.10011242]
[1765799244967,0.22303257,89673.0,89671.0,0.3231487]
[1765799244968,0.004,89673.0,89671.0,0.3231487]
[1765799245420,0.23417796,89676.0,89672.0,0.23418453]
[1765799245578,0.22302305,89677.0,89675.0,0.23417662]
[1765799245783,0.22302573,89676.0,89673.0,0.01115162]
[1765799246144,0.22302573,89676.0,89673.0,0.23418273]
[1765799246841,0.22303101,89674.0,89672.0,0.01115175]
[1765799247046,0.0111515,89674.0,89672.0,0.22303498]
[1765799247499,0.0111515,89674.0,89671.0,0.32314536]
[1765799247500,0.23418362,89674.0,89671.0,0.32314536]
[1765799247768,0.22303463,89673.0,89671.0,0.08896055]
[1765799248192,0.22303506,89672.0,89671.0,0.08896055]
[1765799248716,0.22303463,89673.0,89671.0,0.08896055]
[1765799248922,0.22303506,89672.0,89671.0,0.08896055]
[1765799249137,0.22303754,89671.0,89670.0,0.46689764]
[1765799251555,0.22603754,89671.0,89670.0,0.46689764]
[1765799251731,0.22303754,89671.0,89670.0,0.46689764]
[1765799252117,0.22903754,89671.0,89670.0,0.46689764]
[1765799256090,0.006,89671.0,89670.0,0.46689764]
[1765799256516,0.22903754,89671.0,89670.0,0.46689764]
[1765799257267,0.22303754,89671.0,89670.0,0.46689764]
[1765799257713,0.22903754,89671.0,89670.0,0.46689764]
[1765799258056,0.22303754,89671.0,89670.0,0.46689764]
[1765799258266,0.005,89671.0,89670.0,0.46689764]
[1765799258417,0.22803754,89671.0,89670.0,0.46689764]
[1765799258628,0.005,89671.0,89670.0,0.68993767]
[1765799259616,0.005,89671.0,89670.0,0.70753767]
[1765799260476,0.52485448,89685.0,89681.0,0.23416304]
[1765799260687,0.52485448,89685.0,89671.0,0.01115187]
[1765799260688,0.01114901,89694.0,89687.0,0.01114988]
[1765799261017,0.00011508,89694.0,89691.0,0.01114939]
[1765799261430,0.00011508,89694.0,89692.0,0.22298504]
[1765799261820,0.00711508,89694.0,89692.0,0.22298504]
[1765799262021,0.00711508,89694.0,89693.0,0.02229828]
[1765799262233,0.00011508,89694.0,89693.0,0.02229828]
[1765799262438,0.00511508,89694.0,89692.0,0.22298504]
[1765799263608,0.00011508,89694.0,89692.0,0.22298504]
[1765799263847,0.00511508,89694.0,89692.0,0.22298504]
[1765799266839,0.00511508,89694.0,89691.0,0.01114939]
[1765799267037,0.00511508,89694.0,89692.0,0.22298375]
[1765799267638,0.00011508,89694.0,89692.0,0.22298375]
[1765799268161,0.00511508,89694.0,89692.0,0.22298375]
[1765799268360,0.00011508,89694.0,89693.0,0.22298284]
[1765799268565,0.00511508,89694.0,89693.0,0.22298284]
[1765799270767,0.00011508,89694.0,89693.0,0.22298284]
[1765799270984,0.00511508,89694.0,89693.0,0.22298284]
[1765799271192,0.22298604,89692.0,89686.0,0.0176]
[1765799271407,0.22298515,89693.0,89689.0,0.22299278]
[1765799271591,0.23413429,89693.0,89690.0,0.01114951]
[1765799272057,0.01114914,89693.0,89691.0,0.22298771]
[1765799272276,0.01114914,89693.0,89690.0,0.23413975]
[1765799272487,0.01114926,89692.0,89688.0,0.01114976]
[1765799272667,0.01114926,89692.0,89689.0,0.08896055]
[1765799273087,0.22298911,89691.0,89689.0,0.08896055]
[1765799273300,0.01114926,89692.0,89689.0,0.08896055]
[1765799273520,0.22299029,89690.0,89689.0,0.08896055]
[1765799274158,0.005,89693.0,89691.0,0.22298543]
[1765799274371,0.01126409,89694.0,89692.0,0.22298532]
[1765799274583,0.00011508,89694.0,89692.0,0.22298532]
[1765799274803,0.00011508,89694.0,89691.0,0.23413482]
[1765799274954,0.00011508,89694.0,89693.0,0.22298284]
[1765799275381,0.00011508,89694.0,89691.0,0.01114939]
[1765799275789,0.005,89693.0,89692.0,0.22298297]
[1765799276984,0.00011508,89694.0,89693.0,0.22298284]
[1765799277197,0.00511508,89694.0,89693.0,0.22298284]
[1765799277378,0.00011508,89694.0,89693.0,0.22298284]
[1765799278462,0.00511508,89694.0,89693.0,0.22298284]
[1765799278670,0.00511508,89694.0,89691.0,0.23413661]
[1765799278877,0.00511508,89694.0,89693.0,0.22298284]
[1765799279340,0.00511508,89694.0,89691.0,0.01114939]
[1765799279558,0.23924485,89694.0,89691.0,0.23413581]
[1765799279766,0.00511508,89694.0,89691.0,0.01114939]
[1765799279978,0.00511508,89694.0,89691.0,0.23413515]
[1765799280248,0.2230967,89694.0,89691.0,0.23413261]
[1765799280479,0.00511508,89694.0,89691.0,0.01114939]
[1765799280698,0.01626409,89694.0,89687.0,0.01114988]
[1765799280905,0.22299007,89691.0,89688.0,0.08896055]
[1765799281124,0.01626409,89694.0,89688.0,0.08896055]
[1765799281417,0.01626409,89694.0,89687.0,0.2341456]
[1765799281755,0.01114951,89690.0,89688.0,0.08896055]
[1765799281967,0.23413727,89691.0,89688.0,0.08896055]
[1765799282179,0.23413727,89691.0,89688.0,0.32310335]
[1765799283021,0.23813727,89691.0,89688.0,0.32310335]
[1765799283466,0.23813727,89691.0,89689.0,0.08896055]
[1765799283650,0.23813727,89691.0,89690.0,0.22299029]
[1765799283651,0.004,89691.0,89690.0,0.22299029]
[1765799285110,0.00011508,89694.0,89693.0,0.22298284]
[1765799287131,0.00511508,89694.0,89693.0,0.22298284]
[1765799288752,0.22298291,89693.0,89691.0,0.01114939]
[1765799288897,0.00511508,89694.0,89692.0,0.22298532]
[1765799289421,0.00511508,89694.0,89692.0,0.22298502]
[1765799289772,0.00011508,89694.0,89691.0,0.23413232]
[1765799290406,0.00011508,89694.0,89692.0,0.22298378]
[1765799290847,0.22809653,89694.0,89691.0,0.23413232]
[1765799291051,0.22309653,89694.0,89691.0,0.23413232]
[1765799291254,0.00011508,89694.0,89692.0,0.22298463]
[1765799291465,0.22809605,89694.0,89691.0,0.23413232]
[1765799291674,0.22809546,89694.0,89691.0,0.23413232]
[1765799291857,0.22298451,89693.0,89689.0,0.10011018]
[1765799292244,0.2341365,89692.0,89689.0,0.3231028]
[1765799292455,0.23413662,89692.0,89689.0,0.32310266]
[1765799292658,0.23413246,89693.0,89690.0,0.22298824]
[1765799292870,0.01115063,89681.0,89676.0,0.01115125]
[1765799293044,0.00511508,89694.0,89676.0,0.01115125]
[1765799293045,0.01114914,89693.0,89679.0,0.01115088]
[1765799293405,0.01114914,89693.0,89677.0,0.02230226]
[1765799293406,0.22298565,89692.0,89689.0,0.08896055]
[1765799293561,0.23413491,89692.0,89689.0,0.10011018]
[1765799293766,0.00011508,89694.0,89691.0,0.01114939]
[1765799293942,0.00011508,89694.0,89690.0,0.03344853]
[1765799293943,0.01114926,89692.0,89689.0,0.08896055]
[1765799294151,0.22299029,89690.0,89689.0,0.08896055]
[1765799294366,0.22298728,89692.0,89689.0,0.31195224]
[1765799294569,0.23413266,89693.0,89689.0,0.31195281]
[1765799294773,0.2229902,89691.0,89689.0,0.08896055]
[1765799294969,0.22299029,89690.0,89689.0,0.08896055]
[1765799295178,0.22298733,89692.0,89689.0,0.31195242]
[1765799295441,0.002,89690.0,89689.0,0.08896055]
[1765799295639,0.22298881,89691.0,89689.0,0.08896055]
[1765799295848,0.23413659,89692.0,89689.0,0.08896055]
[1765799296155,0.00011508,89694.0,89690.0,0.01114951]
[1765799296482,0.00011508,89694.0,89693.0,0.22298284]
[1765799297524,0.00311508,89694.0,89693.0,0.22298284]
[1765799297728,0.00011508,89694.0,89693.0,0.22298284]
[1765799298222,0.00311508,89694.0,89693.0,0.22298284]
[1765799313396,0.00011508,89694.0,89693.0,0.22298284]
[1765799313734,0.00311508,89694.0,89693.0,0.22298284]
[1765799313937,0.00011508,89694.0,89693.0,0.22298284]
[1765799314339,0.00211508,89694.0,89693.0,0.22298284]
[1765799325264,0.00211508,89694.0,89693.0,0.27300123]
[1765799325462,0.00211508,89694.0,89693.0,0.36214746]
[1765799325704,0.00211508,89694.0,89693.0,0.30647748]
[1765799325915,0.00211508,89694.0,89693.0,0.36214746]
[1765799326130,0.00211508,89694.0,89693.0,0.30647748]
[1765799326340,0.00211508,89694.0,89693.0,0.36214746]
[1765799327060,0.00211508,89694.0,89693.0,0.30647748]
[1765799327259,0.00211508,89694.0,89693.0,0.36214746]
[1765799327488,0.00211508,89694.0,89693.0,0.30647748]
[1765799328948,0.00211508,89694.0,89693.0,0.42167748]
[1765799329154,0.00011508,89694.0,89693.0,0.47734746]
[1765799329385,0.00011508,89694.0,89693.0,0.48834746]
[1765799329966,0.00011508,89694.0,89693.0,0.49234746]
[1765799330465,0.00011508,89694.0,89693.0,0.43267748]
[1765799330668,0.00011508,89694.0,89693.0,0.48834746]
[1765799330869,0.00011508,89694.0,89693.0,0.50034746]
[1765799332133,0.00011508,89694.0,89693.0,0.44467748]
[1765799332340,0.00011508,89694.0,89693.0,0.50034746]
[1765799332963,0.00011508,89694.0,89693.0,0.44467748]
[1765799334200,0.00011508,89694.0,89693.0,0.50034746]
[1765799334400,0.00011508,89694.0,89693.0,0.44467748]
[1765799334622,0.00011508,89694.0,89693.0,0.50034746]
[1765799334799,0.00011508,89694.0,89693.0,0.44467748]
[1765799334982,0.00011508,89694.0,89693.0,0.50034746]
[1765799335327,0.00011508,89694.0,89693.0,0.44467748]
[1765799335741,0.00011508,89694.0,89693.0,0.50034746]
[1765799336623,0.00011508,89694.0,89693.0,0.44467748]
[1765799337464,0.00011508,89694.0,89693.0,0.50034746]
[1765799338309,0.00011508,89694.0,89693.0,0.44467748]
[1765799338515,0.00011508,89694.0,89693.0,0.50034746]
[1765799339323,0.00011508,89694.0,89693.0,0.46227748]
[1765799340721,0.00011508,89694.0,89693.0,0.51794746]
[1765799340937,0.00011508,89694.0,89693.0,0.46227748]
[1765799341171,0.00011508,89694.0,89693.0,0.51794746]
[1765799341575,0.00011508,89694.0,89693.0,0.46227748]
[1765799342538,0.00011508,89694.0,89693.0,0.51794746]
[1765799343679,0.00011508,89694.0,89693.0,0.54221456]
[1765799344044,0.00011508,89694.0,89693.0,0.59788454]
[1765799344448,0.00011508,89694.0,89693.0,0.54221456]
[1765799344712,0.00011508,89694.0,89693.0,0.59788454]
[1765799345155,0.00011508,89694.0,89693.0,0.54221456]
[1765799345356,0.00011508,89694.0,89693.0,0.59788454]
[1765799346174,0.00011508,89694.0,89693.0,0.54221456]
[1765799346385,0.00011508,89694.0,89693.0,0.59788454]
[1765799348040,0.00011508,89694.0,89693.0,0.54221456]
[1765799348440,0.00011508,89694.0,89693.0,0.46227748]
[1765799348659,0.00011508,89694.0,89693.0,0.51794746]
[1765799348879,0.00011508,89694.0,89693.0,0.46227748]
[1765799349939,0.00011508,89694.0,89693.0,0.54243695]
[1765799350143,0.00011508,89694.0,89693.0,0.52483695]
[1765799350353,0.00011508,89694.0,89693.0,0.54243695]
[1765799350572,0.00011508,89694.0,89693.0,0.49241856]
[1765799350800,0.00011508,89694.0,89693.0,0.37878284]
[1765799351436,0.00011508,89694.0,89693.0,0.36118284]
[1765799351646,0.00011508,89694.0,89693.0,0.37878284]
[1765799352899,0.00011508,89694.0,89693.0,0.36118284]
[1765799353106,0.00011508,89694.0,89693.0,0.37878284]
[1765799353305,0.00011508,89694.0,89693.0,0.26358284]
[1765799354794,0.00011508,89694.0,89693.0,0.25258284]
[1765799354987,0.00011508,89694.0,89693.0,0.24058284]
[1765799365631,0.00011508,89694.0,89693.0,0.29060123]
[1765799366054,0.00011508,89694.0,89693.0,0.34627121]
[1765799366677,0.00011508,89694.0,89693.0,0.29060123]
[1765799367100,0.00011508,89694.0,89693.0,0.22298284]
[1765799392289,0.00341508,89694.0,89693.0,0.22298284]
[1765799397302,0.00661508,89694.0,89693.0,0.22298284]
[1765799409139,0.00661508,89694.0,89693.0,0.27865282]
[1765799409489,0.00661508,89694.0,89693.0,0.22298284]
[1765799410135,0.00661508,89694.0,89693.0,0.27300123]
[1765799410343,0.01327508,89694.0,89693.0,0.27300123]
[1765799411597,0.01327508,89694.0,89693.0,0.35321438]
[1765799411808,0.01327508,89694.0,89693.0,0.40888436]
[1765799412219,0.01327508,89694.0,89693.0,0.35321438]
[1765799412964,0.01327508,89694.0,89693.0,0.40888436]
[1765799413172,0.01327508,89694.0,89693.0,0.52408436]
[1765799413595,0.01327508,89694.0,89693.0,0.44387121]
[1765799414003,0.01327508,89694.0,89693.0,0.38820123]
[1765799414426,0.01327508,89694.0,89693.0,0.44387121]
[1765799414814,0.01327508,89694.0,89693.0,0.38820123]
[1765799415051,0.01327508,89694.0,89693.0,0.44387121]
[1765799415261,0.01327508,89694.0,89693.0,0.47734649]
[1765799417410,0.01327508,89694.0,89693.0,0.42167651]
[1765799417614,0.01327508,89694.0,89693.0,0.47734649]
[1765799418066,0.01427508,89694.0,89693.0,0.73737651]
[1765799418275,0.01427508,89694.0,89693.0,0.79304649]
[1765799418484,0.01427508,89694.0,89693.0,0.73737651]
[1765799418661,0.01427508,89694.0,89693.0,0.79304649]
[1765799419325,1e-08,89694.0,89693.0,1.73737651]
[1765799419543,0.23399854,89745.0,89742.0,0.01114305]
[1765799419724,0.23399854,89745.0,89738.0,0.01114355]
[1765799419725,0.01114293,89743.0,89739.0,0.23401196]
[1765799419972,0.0127558,89743.0,89739.0,0.23401196]
[1765799420184,0.2356165,89743.0,89740.0,0.22286492]
[1765799420413,0.22286363,89741.0,89739.0,0.23401179]
[1765799420625,0.00161287,89741.0,89739.0,0.23401179]
[1765799421046,0.00161287,89741.0,89740.0,0.22286605]
[1765799421728,0.00361287,89741.0,89740.0,0.22286605]
[1765799421923,0.00161287,89741.0,89740.0,0.22286605]
[1765799422678,0.00161287,89741.0,89739.0,0.22286854]
[1765799423907,0.00161287,89741.0,89740.0,0.22286605]
[1765799424757,0.00161287,89741.0,89738.0,0.23401237]
[1765799424962,0.00161287,89741.0,89739.0,0.22286753]
[1765799425373,0.00161287,89741.0,89740.0,0.22286605]
[1765799425755,0.00161287,89741.0,89740.0,0.3118266]
[1765799426361,0.00161287,89741.0,89738.0,0.01114355]
[1765799426617,0.00161287,89741.0,89736.0,0.01114379]
[1765799426803,0.0111433,89740.0,89738.0,0.08896055]
[1765799427025,0.0111433,89740.0,89738.0,0.31183126]
[1765799427209,0.23562197,89741.0,89739.0,0.22286816]
[1765799427555,0.00161287,89741.0,89739.0,0.2228685]
[1765799427759,0.00161287,89741.0,89740.0,0.24515265]
[1765799427979,0.00161287,89741.0,89740.0,0.22286605]
[1765799430313,0.0001151,89745.0,89744.0,0.22285612]
[1765799435839,0.0001151,89745.0,89742.0,0.01114305]
[1765799436046,0.2340014,89744.0,89739.0,0.01114342]
[1765799436249,0.0111428,89744.0,89741.0,0.01114317]
[1765799436403,0.0111428,89744.0,89742.0,0.22286091]
[1765799436610,0.23411163,89745.0,89742.0,0.23400396]
[1765799437196,0.23400623,89742.0,89738.0,0.01114355]
[1765799437367,0.23400613,89743.0,89739.0,0.01114342]
[1765799438426,0.23400613,89743.0,89740.0,0.23400914]
[1765799438630,0.23400613,89743.0,89738.0,0.23401457]
[1765799438631,0.01114305,89742.0,89738.0,0.23401457]
[1765799438879,0.01114317,89741.0,89739.0,0.22286752]
[1765799439088,0.23400895,89742.0,89739.0,0.23401094]
[1765799439257,0.01114305,89742.0,89740.0,0.22286605]
[1765799439620,0.01114317,89741.0,89731.0,0.01114442]
[1765799439825,0.01114404,89734.0,89730.0,0.01114454]
[1765799440097,0.01114379,89736.0,89733.0,0.234027]
[1765799440316,0.23401802,89737.0,89733.0,0.01114417]
[1765799440509,0.23401802,89737.0,89734.0,0.01114404]
[1765799440641,0.22286825,89740.0,89737.0,0.22287109]
[1765799440846,0.22286825,89740.0,89739.0,0.08896055]
[1765799441165,0.23561962,89741.0,89739.0,0.08896055]
[1765799441372,0.01275604,89741.0,89739.0,0.08896055]
[1765799441571,0.23562021,89741.0,89739.0,0.311829]
[1765799442361,0.01275604,89741.0,89739.0,0.311829]
[1765799442816,0.23561997,89741.0,89739.0,0.08896055]
[1765799443212,0.01275604,89741.0,89739.0,0.31182854]
[1765799443853,0.22447728,89741.0,89739.0,0.08896055]
[1765799444048,0.22287082,89739.0,89736.0,0.23401746]
[1765799444257,0.22287314,89738.0,89736.0,0.22287562]
[1765799444782,0.23401424,89739.0,89736.0,0.23401941]
[1765799445474,0.23401424,89739.0,89736.0,0.01114379]
[1765799445889,0.23401547,89738.0,89735.0,0.234022]
[1765799446091,0.01114367,89737.0,89732.0,0.01114429]
[1765799446411,0.23401629,89738.0,89727.0,0.01114491]
[1765799446412,0.01114429,89732.0,89727.0,0.01114491]
[1765799446621,0.22290075,89727.0,89725.0,0.0176]
[1765799447070,0.22290083,89726.0,89725.0,0.0176]
[1765799447699,0.23404052,89729.0,89725.0,0.0176]
[1765799447700,0.23404272,89728.0,89725.0,0.24050331]
[1765799447872,0.01114466,89729.0,89726.0,0.22289866]
[1765799447873,0.23403997,89729.0,89726.0,0.22289866]
[1765799448319,0.22289669,89728.0,89725.0,0.25164847]
[1765799448929,0.22289834,89727.0,89725.0,0.0176]
[1765799450608,0.22389834,89727.0,89725.0,0.0176]
[1765799451583,0.001,89727.0,89725.0,0.24050323]
[1765799451785,0.001,89727.0,89726.0,0.08896055]
[1765799452005,0.001,89727.0,89726.0,0.31186138]
[1765799452608,0.23403353,89731.0,89729.0,0.22289265]
[1765799452816,0.01114442,89731.0,89729.0,0.22289265]
[1765799453678,0.01114404,89734.0,89731.0,0.22288841]
[1765799453679,0.23402511,89734.0,89731.0,0.22288841]
[1765799454788,0.23402511,89734.0,89731.0,0.23403283]
[1765799455201,0.23402511,89734.0,89732.0,0.22288523]
[1765799455365,0.01114404,89734.0,89732.0,0.22288523]
[1765799455810,0.01114404,89734.0,89732.0,0.22288522]
[1765799456471,0.23402503,89734.0,89731.0,0.23403283]
[1765799456728,0.01114404,89734.0,89731.0,0.23403283]
[1765799456930,0.23402708,89734.0,89731.0,0.23403283]
[1765799457223,0.23402708,89734.0,89732.0,0.22288506]
[1765799457826,0.23402463,89736.0,89733.0,0.22288291]
[1765799458038,0.23402465,89735.0,89730.0,0.01114454]
[1765799458260,0.22288698,89732.0,89729.0,0.23403571]
[1765799458417,0.2340324,89733.0,89730.0,0.22288969]
[1765799458798,0.01114417,89733.0,89730.0,0.22288969]
[1765799459186,0.22288659,89732.0,89729.0,0.23403571]
[1765799459385,0.01125778,89745.0,89733.0,0.01114417]
[1765799459589,0.01125778,89745.0,89730.0,0.22289062]
[1765799459590,0.22287486,89737.0,89732.0,0.01114429]
[1765799459840,0.2340219,89736.0,89733.0,0.23402761]
[1765799460186,0.22288035,89735.0,89733.0,0.01114417]
[1765799460430,0.2340199,89736.0,89733.0,0.01114417]
[1765799460605,0.23402178,89737.0,89734.0,0.22288077]
[1765799460810,0.23402206,89736.0,89733.0,0.23402738]
[1765799461046,0.22287957,89735.0,89733.0,0.01114417]
[1765799461245,0.01114404,89734.0,89730.0,0.2340353]
[1765799461469,0.22288551,89733.0,89730.0,0.2340353]
[1765799462159,0.01275604,89741.0,89734.0,0.01114404]
[1765799462327,0.0111433,89740.0,89734.0,0.01114404]
[1765799462529,0.23561967,89741.0,89737.0,0.01114367]
[1765799462732,0.23561967,89741.0,89737.0,0.23401677]
[1765799462888,0.22447644,89741.0,89740.0,0.08896055]
[1765799463699,0.00161287,89741.0,89740.0,0.08896055]
[1765799463907,0.22447644,89741.0,89740.0,0.08896055]
[1765799464530,0.22286745,89740.0,89737.0,0.23401531]
[1765799464743,0.2228688,89739.0,89737.0,0.23401531]
[1765799465104,0.01275604,89741.0,89737.0,0.01114367]
[1765799465717,0.222868,89740.0,89737.0,0.23401679]
[1765799467172,0.00161287,89741.0,89738.0,0.01114355]
[1765799467338,0.0111428,89744.0,89740.0,0.23400935]
[1765799467670,0.23399899,89744.0,89741.0,0.01114317]
[1765799467872,0.01114293,89743.0,89740.0,0.08896055]
[1765799468079,0.23400342,89743.0,89740.0,0.31182584]
[1765799468315,0.01125778,89745.0,89741.0,0.01114317]
[1765799468746,0.23411338,89745.0,89742.0,0.2228591]
[1765799468951,0.0001151,89745.0,89743.0,0.22285659]
[1765799469571,0.0001151,89745.0,89744.0,0.22285612]
[1765799471037,0.0001151,89745.0,89742.0,0.23400362]
[1765799471268,0.0001151,89745.0,89743.0,0.2228581]
[1765799471486,0.0001151,89745.0,89744.0,0.22285612]
[1765799472671,0.0001151,89745.0,89742.0,0.01114305]
[1765799473106,0.0001151,89745.0,89744.0,0.22285612]
[1765799473469,0.01125778,89745.0,89742.0,0.01114305]
[1765799473675,0.01125778,89745.0,89741.0,0.01114317]
[1765799473676,0.0001151,89745.0,89741.0,0.01114317]
[1765799473895,0.01114429,89732.0,89729.0,0.01114466]
[1765799474102,0.01114392,89735.0,89732.0,0.0176]
[1765799474315,0.23402443,89735.0,89732.0,0.24048478]
[1765799474523,0.00172797,89745.0,89732.0,0.02874429]
[1765799474760,0.22287092,89739.0,89735.0,0.22287648]
[1765799474975,0.01114355,89738.0,89735.0,0.2340204]
[1765799475203,0.01114355,89738.0,89736.0,0.22287479]
[1765799475418,0.01114355,89738.0,89735.0,0.01114392]
[1765799475419,0.23401018,89740.0,89735.0,0.01114392]
[1765799475655,0.23401407,89739.0,89736.0,0.01114379]
[1765799475865,0.22287138,89738.0,89736.0,0.01114379]
[1765799476291,0.23401407,89739.0,89736.0,0.01114379]
[1765799476466,0.23401407,89739.0,89736.0,0.23401819]
[1765799476669,0.23400721,89741.0,89737.0,0.23401581]
[1765799476809,0.22286657,89740.0,89737.0,0.32297636]
[1765799477286,0.22286899,89739.0,89737.0,0.08896055]
[1765799478142,0.22287102,89738.0,89737.0,0.08896055]